bitfinex/quotes_ETHUSD_20250329
["timestamp","ask_amount","ask_price","bid_price","bid_amount"]
[1743258227183,3.0,1854.3,1854.1,5.39325]
[1743258227590,3.0,1854.3,1854.2,5.39316]
[1743258227928,3.0,1854.4,1854.3,5.39283]
[1743258228135,3.0,1854.5,1854.3,6.18336]
[1743258228705,3.0,1854.5,1854.4,5.39257]
[1743258231209,3.0,1854.5,1854.3,6.18336]
[1743258231409,3.00555141,1854.4,1854.1,11.35523]
[1743258231611,3.00555141,1854.4,1854.1,11.35521]
[1743258231818,3.00555141,1854.3,1854.1,5.169]
[1743258232014,3.00555141,1854.3,1854.1,10.56244]
[1743258232229,3.00555141,1854.2,1854.0,5.39362]
[1743258232433,3.00555141,1854.1,1854.0,5.39362]
[1743258232618,3.00555141,1854.2,1854.0,5.39362]
[1743258232804,6.00555141,1854.3,1854.0,5.39351]
[1743258233005,6.00555141,1854.3,1854.1,5.39345]
[1743258233202,3.76565141,1854.2,1853.9,5.39389]
[1743258233408,3.00555141,1854.0,1853.9,5.39389]
[1743258233628,3.00555141,1854.1,1853.9,5.39389]
[1743258233831,3.00555141,1854.1,1854.0,5.39374]
[1743258234552,3.76565141,1854.2,1854.0,5.39374]
[1743258235709,3.76565141,1854.2,1854.0,10.78733]
[1743258235915,3.76565141,1854.2,1854.0,5.39359]
[1743258236119,3.00555141,1854.2,1854.1,5.39345]
[1743258237048,3.00555141,1854.2,1854.0,5.39359]
[1743258237265,3.00555141,1854.2,1854.1,5.39345]
[1743258237958,3.00555141,1854.2,1853.8,5.39407]
[1743258238180,3.0,1853.9,1853.8,5.39407]
[1743258239274,0.7601,1853.7,1853.5,0.1104412]
[1743258239442,3.00555141,1853.6,1853.5,0.1104412]
[1743258239630,3.00555141,1853.6,1853.5,5.5056312]
[1743258240155,3.00555141,1853.7,1853.6,5.3949]
[1743258240360,3.0,1853.7,1853.6,5.3949]
[1743258240674,3.00555141,1854.0,1853.8,5.39432]
[1743258240862,3.0,1853.9,1853.8,5.39432]
[1743258241736,6.00555141,1854.0,1853.9,5.39403]
[1743258241937,6.00555141,1854.0,1853.8,5.39432]
[1743258242176,3.0,1854.0,1853.9,5.39403]
[1743258242480,6.00555141,1854.0,1853.9,5.39403]
[1743258242858,3.0,1854.0,1853.9,5.39403]
[1743258243551,6.00555141,1854.0,1853.9,5.39403]
[1743258244447,3.0,1854.0,1853.9,5.39403]
[1743258244666,3.0,1854.0,1853.9,6.18173]
[1743258245073,0.60055514,1854.5,1853.9,1.945286]
[1743258245235,3.00555141,1854.5,1854.2,10.78611]
[1743258245582,3.00555141,1854.4,1854.2,10.78598]
[1743258246086,3.00555141,1854.4,1854.3,5.39284]
[1743258246240,3.00555141,1854.5,1854.3,10.78555]
[1743258247071,3.00555141,1854.5,1854.3,5.39264]
[1743258247271,3.38381655,1854.5,1854.4,5.39257]
[1743258247536,3.38381655,1854.5,1854.3,5.39264]
[1743258248052,3.00555141,1854.6,1854.4,5.39243]
[1743258248680,3.00555141,1854.7,1854.5,5.39228]
[1743258250135,3.00555141,1854.7,1854.2,10.55611]
[1743258250136,3.0,1854.5,1854.2,10.55611]
[1743258250355,3.00555141,1854.3,1854.2,10.55611]
[1743258250566,3.00555141,1854.4,1854.2,10.55611]
[1743258250740,3.00555141,1854.4,1854.3,5.39287]
[1743258251350,3.00555141,1854.4,1854.2,10.55595]
[1743258252076,3.00555141,1854.3,1854.1,5.39343]
[1743258252287,3.00555141,1854.2,1854.1,5.39343]
[1743258252495,3.00555141,1854.2,1854.0,10.56263]
[1743258252635,3.00555141,1854.1,1854.0,10.56263]
[1743258253952,6.00555141,1854.1,1854.0,10.56263]
[1743258254978,6.00555141,1854.1,1854.0,5.169]
[1743258255977,6.00555141,1854.1,1854.0,10.56274]
[1743258256351,6.00555141,1854.1,1854.0,5.169]
[1743258256752,6.78265141,1854.1,1853.9,5.39384]
[1743258256961,3.00555141,1854.0,1853.9,5.39384]
[1743258257753,3.7771,1854.1,1853.9,5.39384]
[1743258257975,6.00555141,1854.1,1853.9,10.78767]
[1743258258147,6.00555141,1854.1,1854.0,5.39374]
[1743258258475,6.00555141,1854.1,1853.9,5.39383]
[1743258258668,3.00555141,1854.0,1853.7,0.7877]
[1743258258862,3.00555141,1853.8,1853.7,10.5596]
[1743258259182,6.00555141,1853.8,1853.5,6.3077812]
[1743258259351,3.00555141,1853.6,1853.5,5.5054812]
[1743258260781,6.30610655,1853.6,1853.5,0.1104412]
[1743258260947,7.10020655,1853.6,1853.5,0.1104412]
[1743258262647,6.30610655,1853.6,1853.5,5.5056312]
[1743258262877,6.00555141,1853.6,1853.5,5.5056312]
[1743258263474,6.00555141,1853.6,1853.5,0.1104412]
[1743258265085,6.00555141,1853.6,1853.5,5.5056312]
[1743258265673,6.00555141,1853.6,1853.5,0.1104412]
[1743258265867,6.00555141,1853.6,1853.5,5.5056312]
[1743258267357,6.00555141,1853.6,1853.5,0.1104412]
[1743258268579,3.00555141,1853.6,1853.4,5.0057312]
[1743258268783,3.30610655,1853.6,1853.4,5.0057312]
[1743258268962,3.00555141,1853.5,1853.4,5.0057312]
[1743258269167,3.00555141,1853.5,1853.3,10.79142]
[1743258270450,3.00555141,1853.5,1853.4,5.39548]
[1743258271076,3.0,1853.5,1853.4,5.39548]
[1743258273283,3.63616207,1853.5,1853.2,10.55094]
[1743258273461,3.00555141,1853.4,1853.2,10.55094]
[1743258273859,3.00555141,1853.4,1853.2,5.39594]
[1743258275179,3.00555141,1853.3,1853.2,5.39594]
[1743258276073,3.00555141,1853.3,1853.1,5.44631]
[1743258276394,6.00555141,1853.2,1853.1,0.05]
[1743258276903,6.00555141,1853.2,1853.1,5.44636]
[1743258277302,12.22182141,1853.2,1853.1,0.05]
[1743258277681,18.68975506,1853.2,1853.1,0.05]
[1743258277996,24.13392949,1853.2,1853.1,0.05]
[1743258278200,47.4065801,1853.2,1853.1,0.05]
[1743258278418,3.8202,1853.2,1853.1,0.05]
[1743258278719,6.00555141,1853.2,1853.1,0.05]
[1743258278866,6.54575141,1853.2,1853.1,0.05]
[1743258279066,6.00555141,1853.2,1853.1,0.05]
[1743258279324,12.18262141,1853.2,1853.1,0.05]
[1743258279566,13.9811174,1853.2,1853.1,0.05]
[1743258279767,19.2078634,1853.2,1853.1,0.05]
[1743258280208,23.1900174,1853.2,1853.1,0.05]
[1743258280378,28.8242564,1853.2,1853.1,0.05]
[1743258280585,20.0411174,1853.2,1853.1,0.05]
[1743258281819,30.2980804,1853.2,1853.1,0.05]
[1743258282381,26.9930784,1853.2,1853.1,0.05]
[1743258282603,20.0411174,1853.2,1853.1,0.05]
[1743258283092,33.4760494,1853.2,1853.1,0.05]
[1743258283296,31.0327024,1853.2,1853.1,0.05]
[1743258283602,24.7794544,1853.2,1853.1,0.05]
[1743258283902,23.6446224,1853.2,1853.1,0.05]
[1743258285178,26.65017381,1853.2,1853.1,0.05]
[1743258285404,27.38584283,1853.2,1853.1,0.05]
[1743258285574,24.38029142,1853.2,1853.1,0.05]
[1743258285775,27.38584283,1853.2,1853.1,0.05]
[1743258286506,24.38029142,1853.2,1853.1,0.05]
[1743258286705,23.6446224,1853.2,1853.1,0.05]
[1743258286870,22.1652174,1853.2,1853.1,0.05]
[1743258287474,5.39682,1853.0,1852.6,5.39774]
[1743258287675,6.00555141,1852.7,1852.6,5.39774]
[1743258287882,3.0,1852.7,1852.6,5.39774]
[1743258289376,3.40723063,1852.7,1852.6,5.39774]
[1743258290216,3.0,1852.7,1852.6,5.39774]
[1743258290435,6.00555141,1852.9,1852.8,5.39723]
[1743258290628,3.0,1852.8,1852.7,5.3975]
[1743258290799,3.00555141,1852.9,1852.7,5.3975]
[1743258291417,3.00555141,1852.9,1852.7,5.39742]
[1743258291727,3.41294438,1852.9,1852.7,5.39742]
[1743258292013,3.41294438,1852.9,1852.6,6.558172]
[1743258292184,3.00555141,1852.8,1852.6,6.558052]
[1743258293188,3.00555141,1852.8,1852.7,5.39752]
[1743258294815,3.00555141,1852.8,1852.6,5.39768]
[1743258295014,3.00555141,1852.7,1852.6,5.39768]
[1743258295212,3.00555141,1852.7,1852.5,5.3981]
[1743258295411,0.8117,1852.8,1852.6,5.39756]
[1743258295412,3.00555141,1852.8,1852.6,5.39756]
[1743258295591,3.00555141,1852.8,1852.7,0.7784]
[1743258295795,3.34711105,1852.8,1852.5,6.17647]
[1743258295996,3.00555141,1852.7,1852.5,0.7784]
[1743258296820,3.00555141,1852.7,1852.4,10.58237]
[1743258296821,3.00555141,1852.6,1852.4,10.58237]
[1743258296986,3.00555141,1852.5,1852.3,5.9684]
[1743258297189,3.00555141,1852.4,1852.3,0.7784]
[1743258297419,6.00555141,1852.4,1852.3,0.7784]
[1743258297925,11.40401141,1852.4,1852.2,0.001547]
[1743258298109,3.00555141,1852.3,1852.2,0.001547]
[1743258298434,11.40424141,1852.3,1852.2,0.001547]
[1743258299427,8.39898,1852.2,1852.1,0.05]
[1743258299625,20.22752082,1852.2,1852.1,0.05]
[1743258299940,23.75466482,1852.2,1852.1,0.05]
[1743258300126,26.2772283,1852.2,1852.1,0.05]
[1743258300323,18.1371183,1852.2,1852.1,0.05]
[1743258300524,5.40044,1851.7,1851.5,5.9804]
[1743258300843,11.40599141,1851.7,1851.5,5.202]
[1743258301043,11.40599141,1851.7,1851.3,0.7784]
[1743258301241,17.46599141,1851.7,1851.2,0.03640664]
[1743258301534,19.75260655,1851.7,1851.2,0.03640664]
[1743258301865,20.15839035,1851.7,1851.2,0.03640664]
[1743258302409,20.15839035,1851.7,1851.2,5.43811664]
[1743258302731,0.4817838,1851.7,1851.5,5.216]
[1743258302930,0.4817838,1851.7,1851.6,5.5111712]
[1743258303119,0.4817838,1851.7,1851.6,0.1104412]
[1743258304125,3.48733521,1851.7,1851.6,0.1104412]
[1743258304439,3.08155141,1851.7,1851.6,0.1104412]
[1743258305403,12.63016255,1851.7,1851.6,0.1104412]
[1743258305824,13.41006255,1851.7,1851.6,0.1104412]
[1743258306219,19.87504215,1851.7,1851.6,0.1104412]
[1743258306419,22.88059356,1851.7,1851.6,0.1104412]
[1743258307661,19.87504215,1851.7,1851.6,0.1104412]
[1743258307954,6.48653101,1851.7,1851.6,0.1104412]
[1743258310641,11.88697101,1851.7,1851.6,0.1104412]
[1743258310831,6.48653101,1851.7,1851.6,0.1104412]
[1743258311810,0.076,1851.7,1851.6,5.5111712]
[1743258312118,0.076,1851.7,1851.6,0.66155832]
[1743258312319,0.076,1851.7,1851.6,0.1104412]
[1743258314949,0.076,1851.7,1851.6,5.5111712]
[1743258316752,0.076,1851.7,1851.6,6.2956712]
[1743258317052,0.076,1851.7,1851.6,6.34967419]
[1743258317244,0.076,1851.7,1851.6,7.52472061]
[1743258317750,0.076,1851.7,1851.6,7.47071762]
[1743258318752,0.076,1851.7,1851.6,8.07471888]
[1743258320322,0.076,1851.7,1851.6,8.02071762]
[1743258321338,0.076,1851.7,1851.6,13.22571762]
[1743258325953,0.076,1851.7,1851.6,8.02071762]
[1743258326155,0.076,1851.7,1851.6,6.2956712]
[1743258326325,0.076,1851.7,1851.6,11.5006712]
[1743258326527,0.076,1851.7,1851.6,10.7171712]
[1743258332559,0.076,1851.7,1851.6,12.0567712]
[1743258337865,0.076,1851.7,1851.6,13.14462688]
[1743258338064,0.076,1851.7,1851.6,14.99916857]
[1743258340967,0.076,1851.7,1851.6,9.79316857]
[1743258341192,0.076,1851.7,1851.6,13.12262688]
[1743258342040,0.076,1851.7,1851.6,11.4827712]
[1743258343585,0.076,1851.7,1851.6,12.0327712]
[1743258352390,1e-05,1851.7,1851.6,12.0327712]
[1743258366322,3.00556141,1851.7,1851.6,5.5111712]
[1743258366621,3.81266141,1851.7,1851.6,10.6741712]
[1743258367119,6.81266141,1851.7,1851.6,10.6741712]
[1743258367707,3.80711,1851.7,1851.6,10.6741712]
[1743258368212,1e-05,1851.7,1851.6,12.83166732]
[1743258368985,0.80711,1851.7,1851.6,5.5111712]
[1743258369188,3.81266141,1851.7,1851.6,0.1104412]
[1743258369407,9.21310141,1851.7,1851.6,0.1104412]
[1743258369596,6.81266141,1851.7,1851.6,0.1104412]
[1743258370319,12.21310141,1851.7,1851.6,0.1104412]
[1743258370915,13.97442655,1851.7,1851.6,0.1104412]
[1743258372802,27.59729096,1851.7,1851.6,0.1104412]
[1743258373226,9.2087,1851.3,1851.2,0.03640664]
[1743258373416,12.21425141,1851.3,1851.2,0.03640664]
[1743258374395,12.75797617,1851.3,1851.2,0.03640664]
[1743258374595,14.57391479,1851.3,1851.2,0.03640664]
[1743258375207,9.209,1851.2,1851.1,0.05]
[1743258375408,24.41939082,1851.2,1851.1,0.05]
[1743258375623,21.41383941,1851.2,1851.1,0.05]
[1743258375921,21.36383941,1851.2,1851.1,0.05]
[1743258376093,24.88234969,1851.2,1851.1,0.05]
[1743258376293,27.8879011,1851.2,1851.1,0.05]
[1743258376591,27.8879011,1851.2,1850.2,5.4046]
[1743258376592,0.8071,1850.3,1850.2,5.4046]
[1743258376791,3.81265141,1850.3,1850.1,5.45507]
[1743258376988,3.00555141,1850.2,1850.1,0.05]
[1743258377421,3.81265141,1850.3,1850.1,5.45511]
[1743258377630,0.8071,1850.5,1850.4,5.40423]
[1743258377921,3.00555141,1850.6,1850.5,5.40394]
[1743258378313,3.00555141,1850.6,1850.4,10.61223]
[1743258378517,3.00555141,1850.5,1850.4,10.61223]
[1743258379215,0.7521,1851.0,1850.5,6.22885]
[1743258379404,3.75765141,1851.2,1851.1,5.40198]
[1743258379601,3.75765141,1851.2,1850.6,5.40351]
[1743258379800,3.00555141,1850.7,1850.6,5.40365]
[1743258380216,3.00555141,1850.7,1850.5,5.4038]
[1743258380820,3.00555141,1850.7,1850.4,5.40423]
[1743258381021,8.4027,1851.0,1850.4,5.40406]
[1743258381022,3.00555141,1850.5,1850.4,5.40406]
[1743258382327,3.00555141,1850.5,1850.3,16.05385]
[1743258382505,3.00555141,1850.4,1850.3,10.64939]
[1743258382707,3.00555141,1850.5,1850.4,5.40419]
[1743258383202,0.7521,1850.8,1850.4,0.99736951]
[1743258383404,3.75765141,1851.0,1850.7,5.40316]
[1743258383606,3.75765141,1851.0,1850.9,5.40277]
[1743258384625,3.00555141,1851.1,1850.9,5.40277]
[1743258384925,3.75765141,1851.2,1851.0,5.40228]
[1743258385697,3.75765141,1851.2,1851.0,10.8046]
[1743258385897,0.7521,1851.2,1851.1,5.40219]
[1743258386449,3.0,1851.1,1850.1,6.28011]
[1743258386647,3.00555141,1850.8,1850.7,5.40336]
[1743258386793,3.00555141,1850.9,1850.7,5.40336]
[1743258387244,3.00555141,1850.9,1850.6,5.40341]
[1743258387449,3.00555141,1850.8,1850.6,5.40341]
[1743258387936,3.00555141,1850.8,1850.6,10.80694]
[1743258388140,3.00555141,1850.9,1850.7,5.40336]
[1743258388728,3.00555141,1850.9,1850.7,5.40317]
[1743258389664,3.75765141,1851.0,1850.8,5.40306]
[1743258389869,3.00555141,1850.9,1850.7,5.40317]
[1743258391148,3.00555141,1850.9,1850.6,5.40353]
[1743258391335,3.00555141,1850.9,1850.7,5.40333]
[1743258392045,3.75765141,1851.0,1850.9,5.40277]
[1743258392255,0.7521,1851.0,1850.9,5.40277]
[1743258392751,3.00555141,1851.1,1850.9,10.80541]
[1743258393110,3.00555141,1851.1,1850.9,5.40264]
[1743258393416,3.00555141,1851.1,1851.0,5.40248]
[1743258393617,3.75765141,1851.2,1850.9,5.40257]
[1743258393829,3.75765141,1851.2,1851.1,5.40219]
[1743258394633,0.7521,1851.2,1851.1,5.40219]
[1743258395338,3.75765141,1851.2,1851.1,5.40219]
[1743258396224,3.00555141,1851.2,1851.1,5.40219]
[1743258400952,4.22078414,1851.4,1851.1,5.40219]
[1743258401133,4.22078414,1851.4,1851.2,5.4019]
[1743258401333,3.00555141,1851.3,1851.2,5.4019]
[1743258402752,3.00555141,1851.3,1851.1,5.40207]
[1743258403059,3.00555141,1851.2,1851.1,5.40207]
[1743258404051,3.00555141,1851.3,1851.2,5.40185]
[1743258404240,3.40723555,1851.4,1851.0,0.7572]
[1743258404444,3.00555141,1851.3,1851.2,5.4019]
[1743258405056,3.00555141,1851.4,1851.3,5.40151]
[1743258405355,3.00555141,1851.4,1851.1,5.40216]
[1743258405527,3.00555141,1851.2,1851.1,5.40216]
[1743258405949,3.00555141,1851.3,1851.2,5.40177]
[1743258407151,3.00555141,1851.4,1851.3,5.40158]
[1743258408557,0.8029,1851.6,1851.3,10.6204]
[1743258408748,0.8029,1851.6,1851.4,5.40113]
[1743258408749,3.00555141,1851.5,1851.4,5.40113]
[1743258409140,3.41370886,1851.6,1851.5,5.40102]
[1743258409459,1e-05,1851.7,1851.5,5.40102]
[1743258409460,1e-05,1851.7,1851.6,5.40073]
[1743258410632,3.00556141,1851.7,1851.6,5.40073]
[1743258417033,1e-05,1851.7,1851.6,5.40073]
[1743258419133,1e-05,1851.7,1851.6,7.87470554]
[1743258419343,1e-05,1851.7,1851.6,7.820705]
[1743258420152,1e-05,1851.7,1851.6,7.87469688]
[1743258420354,1e-05,1851.7,1851.6,7.820705]
[1743258423674,1e-05,1851.7,1851.6,7.87468916]
[1743258424169,1e-05,1851.7,1851.6,7.820705]
[1743258425069,1e-05,1851.7,1851.6,7.87468622]
[1743258425279,1e-05,1851.7,1851.6,7.820705]
[1743258425664,1e-05,1851.7,1851.6,13.900705]
[1743258426093,1e-05,1851.7,1851.6,15.00112881]
[1743258431103,1e-05,1851.7,1851.6,18.00112881]
[1743258432396,1e-05,1851.7,1851.6,18.10112881]
[1743258433683,0.05,1852.9,1852.6,5.94781]
[1743258433684,0.8321,1852.7,1852.6,5.94781]
[1743258433856,0.8821,1852.9,1852.8,5.39723]
[1743258434563,3.88765141,1852.9,1852.8,5.39723]
[1743258437663,3.8321,1852.8,1852.7,5.172]
[1743258437863,8.66667769,1852.8,1852.7,5.172]
[1743258438466,6.83765141,1852.8,1852.7,5.172]
[1743258439774,3.83765141,1852.8,1852.7,5.172]
[1743258441696,3.83765141,1852.8,1852.7,10.56952]
[1743258441904,0.8321,1852.8,1852.7,10.56952]
[1743258442394,0.05,1852.9,1852.8,5.94723]
[1743258442598,0.05,1852.9,1852.8,7.004182]
[1743258451779,0.05,1852.9,1852.8,7.05814147]
[1743258452485,0.05,1852.9,1852.8,7.05814154]
[1743258452677,0.05,1852.9,1852.8,7.004182]
[1743258454115,1e-05,1852.9,1852.8,7.756882]
[1743258464496,1e-05,1852.9,1852.8,7.8108283]
[1743258464898,1e-05,1852.9,1852.8,7.756882]
[1743258465222,1e-05,1852.9,1852.8,8.15681925]
[1743258465886,1e-05,1852.9,1852.8,14.23681925]
[1743258472120,1e-05,1852.9,1852.8,17.23681925]
[1743258472920,1e-05,1852.9,1852.8,17.33681925]
[1743258475020,1e-05,1852.9,1852.8,23.03881925]
[1743258476028,0.05,1853.9,1853.8,5.39432]
[1743258476237,0.05,1853.9,1853.8,11.609203]
[1743258476443,0.05,1853.9,1853.8,12.159203]
[1743258476602,0.7597,1854.0,1853.9,5.94403]
[1743258476802,3.00555141,1854.5,1854.4,5.39257]
[1743258477125,3.00555141,1854.5,1854.4,10.19153437]
[1743258477436,1.06025514,1854.5,1854.4,10.19153437]
[1743258477800,4.06025514,1854.5,1854.4,10.19153437]
[1743258478423,3.7597,1854.5,1854.4,10.19153437]
[1743258478826,0.7597,1854.5,1854.4,10.19153437]
[1743258479429,3.7597,1854.5,1854.4,10.19153437]
[1743258483306,3.76525141,1854.5,1854.4,10.19153437]
[1743258483506,3.76525141,1854.5,1854.4,10.18153437]
[1743258483736,4.14177655,1854.5,1854.4,10.18153437]
[1743258484037,7.14177655,1854.5,1854.4,10.18153437]
[1743258484196,6.76525141,1854.5,1854.4,10.18153437]
[1743258484533,3.7597,1854.5,1854.4,10.18153437]
[1743258486634,6.76525141,1854.5,1854.4,10.18153437]
[1743258487836,3.7597,1854.5,1854.4,10.18153437]
[1743258488337,6.76525141,1854.5,1854.4,10.18153437]
[1743258494749,0.7895,1854.2,1853.5,11.47514]
[1743258495047,3.7895,1853.5,1853.3,10.53575]
[1743258495222,3.00555141,1853.4,1853.3,15.9314]
[1743258495639,3.00555141,1853.4,1853.3,10.53565]
[1743258496023,3.79505141,1853.4,1853.3,10.54165]
[1743258501332,3.79505141,1853.4,1853.3,5.39565]
[1743258501532,3.79505141,1853.4,1853.3,10.53365]
[1743258501765,3.79505141,1853.4,1853.3,5.138]
[1743258501933,3.38505655,1853.4,1853.1,5.39636]
[1743258502134,3.79055141,1853.2,1853.1,5.39636]
[1743258502333,3.79055141,1853.2,1853.1,10.53336]
[1743258503959,3.79055141,1853.2,1853.1,5.39636]
[1743258504266,3.79055141,1853.2,1853.1,5.141]
[1743258506370,3.0,1853.1,1853.0,5.39648]
[1743258506673,3.79055141,1853.1,1853.0,5.139]
[1743258507848,3.79055141,1853.1,1853.0,10.53565]
[1743258512946,3.79055141,1853.1,1853.0,5.139]
[1743258519483,6.79610282,1853.1,1852.6,5.39779]
[1743258519681,3.00555141,1852.7,1852.5,5.39791]
[1743258519849,3.00555141,1852.9,1852.6,5.121]
[1743258520054,3.00555141,1852.7,1852.6,5.121]
[1743258520374,3.00555141,1852.7,1852.6,5.122]
[1743258522882,3.00555141,1852.7,1852.5,5.39797]
[1743258523183,3.00555141,1852.9,1852.4,5.119]
[1743258523184,4.05900655,1852.6,1852.4,5.119]
[1743258523488,3.00555141,1852.5,1852.4,5.119]
[1743258525685,0.7529,1852.6,1852.4,5.119]
[1743258525900,0.7529,1853.0,1852.7,5.39752]
[1743258526061,3.00555141,1852.8,1852.7,5.39752]
[1743258526260,3.00555141,1852.8,1852.6,5.39781]
[1743258526560,3.00555141,1852.7,1852.6,5.39781]
[1743258530093,3.00555141,1852.8,1852.7,5.39749]
[1743258531699,3.00555141,1852.8,1852.6,5.39775]
[1743258531876,3.00555141,1852.7,1852.6,5.39775]
[1743258539797,3.00555141,1852.9,1852.7,5.39739]
[1743258539998,0.7529,1853.0,1852.9,5.39694]
[1743258539999,3.00555141,1853.0,1852.9,5.39694]
[1743258540388,0.776,1852.9,1852.8,5.105]
[1743258540609,3.78155141,1852.9,1852.8,5.105]
[1743258542482,3.78155141,1852.9,1852.7,5.105]
[1743258542904,3.00555141,1852.8,1852.5,5.39793]
[1743258543075,3.00555141,1852.6,1852.4,10.79656]
[1743258543281,3.00555141,1852.6,1852.5,10.51011]
[1743258547019,3.00555141,1852.7,1852.5,10.51011]
[1743258548515,3.00555141,1852.6,1852.5,5.112]
[1743258548815,3.76375141,1852.6,1852.5,5.112]
[1743258549625,3.00555141,1852.6,1852.5,5.112]
[1743258549813,3.00555141,1852.6,1852.5,10.51011]
[1743258550192,3.00555141,1852.6,1852.5,5.112]
[1743258550398,3.38192655,1852.6,1852.5,5.112]
[1743258552717,3.00555141,1852.6,1852.5,5.112]
[1743258554219,3.00555141,1852.6,1852.5,5.105]
[1743258559020,0.7627,1852.5,1852.4,5.105]
[1743258559317,3.76825141,1852.5,1852.4,5.105]
[1743258565350,3.00555141,1852.6,1852.4,5.105]
[1743258565511,3.00555141,1852.6,1852.4,10.50327]
[1743258565842,3.76825141,1852.9,1852.5,5.45187997]
[1743258566040,3.00555141,1852.9,1852.7,5.39741]
[1743258566340,3.0,1852.9,1852.8,5.105]
[1743258566507,1.16593278,1853.1,1852.8,5.105]
[1743258566695,2.36177306,1853.1,1852.8,5.105]
[1743258566892,5.36177306,1853.1,1852.8,5.105]
[1743258567495,3.00555141,1852.9,1852.8,5.105]
[1743258567692,3.00555141,1853.2,1852.9,5.39683]
[1743258567919,3.00555141,1853.1,1852.9,10.79358]
[1743258568136,3.00555141,1853.1,1852.9,5.39675]
[1743258568704,3.00555141,1853.1,1852.9,10.79347]
[1743258568906,3.00555141,1853.1,1852.9,5.39672]
[1743258569836,3.00555141,1853.1,1852.9,10.79354]
[1743258571634,3.00555141,1853.1,1853.0,5.39665]
[1743258574216,3.00555141,1853.1,1852.9,7.062164]
[1743258574408,3.00555141,1853.1,1852.9,5.39672]
[1743258574837,3.00555141,1853.0,1852.9,5.39672]
[1743258575941,3.00555141,1853.0,1852.7,6.15047]
[1743258576143,3.79605141,1852.9,1852.8,5.104]
[1743258576644,3.00555141,1852.9,1852.8,10.50122]
[1743258579846,3.7905,1853.4,1852.9,0.753]
[1743258580012,6.00555141,1853.2,1853.1,5.39625]
[1743258580414,3.00555141,1853.4,1853.2,5.39591]
[1743258580740,3.00555141,1853.3,1853.2,10.49991]
[1743258583045,3.00555141,1853.3,1853.2,5.104]
[1743258583217,3.30610655,1853.3,1853.0,5.39665]
[1743258583536,1.09105514,1853.3,1853.2,5.104]
[1743258584638,4.09660655,1853.3,1853.2,5.104]
[1743258586345,3.79605141,1853.3,1853.2,5.104]
[1743258586750,3.00555141,1853.3,1853.2,10.50007]
[1743258589557,3.00555141,1853.4,1853.3,5.39573]
[1743258590257,3.00555141,1853.5,1853.4,5.39538]
[1743258591855,3.00555141,1853.5,1853.3,6.19443]
[1743258592066,3.00555141,1853.4,1853.3,6.19443]
[1743258592359,3.00555141,1853.4,1853.3,7.863879]
[1743258593655,3.00555141,1853.5,1853.4,5.39542]
[1743258599149,3.00555141,1853.5,1853.3,5.39573]
[1743258599454,3.00555141,1853.4,1853.3,5.39573]
[1743258600769,3.00555141,1853.4,1853.2,10.50005]
[1743258601070,0.7931,1853.2,1853.0,5.39645]
[1743258601250,0.7931,1853.2,1853.1,5.103]
[1743258601667,0.7931,1853.5,1853.1,10.49936]
[1743258602466,3.00555141,1853.2,1853.1,10.49936]
[1743258603371,3.83805141,1853.2,1853.1,5.103]
[1743258604754,3.00555141,1853.5,1853.3,5.39578]
[1743258604955,3.00555141,1853.4,1853.3,5.39578]
[1743258606164,3.00555141,1853.4,1853.2,5.39602]
[1743258606368,3.00555141,1853.3,1853.2,8.39602]
[1743258607570,3.00555141,1853.4,1853.3,5.39549]
[1743258607741,3.00555141,1853.5,1853.3,12.170201]
[1743258607933,3.00555141,1853.4,1853.3,6.774641]
[1743258610374,3.00555141,1853.4,1853.2,8.39595]
[1743258610575,3.00555141,1853.3,1853.2,8.39595]
[1743258611143,3.00555141,1853.3,1853.2,3.0]
[1743258611339,9.23389141,1853.3,1853.0,5.102]
[1743258611646,3.00555141,1853.1,1853.0,5.102]
[1743258614883,3.00555141,1853.1,1853.0,10.49865]
[1743258615076,3.00555141,1853.1,1853.0,5.102]
[1743258620384,3.00555141,1853.1,1852.8,5.39723]
[1743258620687,5.39619,1853.2,1853.0,5.103]
[1743258620890,6.59933883,1853.2,1853.0,5.103]
[1743258621287,5.39638,1853.1,1852.7,6.19704]
[1743258621600,5.39638,1853.1,1853.0,5.103]
[1743258621804,8.40193141,1853.1,1853.0,5.103]
[1743258622877,3.00555141,1853.1,1853.0,5.103]
[1743258624464,9.90202843,1853.1,1853.0,5.103]
[1743258624995,4.50566843,1853.1,1853.0,5.103]
[1743258625691,3.00555141,1853.2,1853.0,5.103]
[1743258626291,6.63531825,1853.3,1853.0,5.103]
[1743258626496,3.00555141,1853.1,1853.0,5.103]
[1743258628399,3.00555141,1853.3,1853.0,5.103]
[1743258628698,3.00555141,1853.4,1853.1,5.39625]
[1743258628899,3.00555141,1853.3,1853.1,5.39625]
[1743258630402,3.00555141,1853.3,1853.2,5.39607]
[1743258630598,3.00555141,1853.3,1853.1,5.39631]
[1743258631107,3.00555141,1853.2,1853.0,10.49962]
[1743258631284,3.00555141,1853.1,1853.0,5.103]
[1743258631602,6.1566,1853.5,1853.0,5.103]
[1743258631603,3.00555141,1853.2,1853.0,5.103]
[1743258631803,3.00555141,1853.2,1853.0,10.49955]
[1743258634814,3.00555141,1853.3,1853.1,5.39636]
[1743258635375,3.00555141,1853.3,1853.0,12.171824]
[1743258635807,3.00555141,1853.2,1853.1,5.39636]
[1743258636897,3.00555141,1853.2,1853.0,12.171744]
[1743258637232,3.0,1853.7,1853.1,0.8023]
[1743258637397,3.00555141,1853.5,1853.2,10.79173]
[1743258637800,3.00555141,1853.4,1853.2,5.39583]
[1743258638506,3.00555141,1853.4,1853.2,10.79169]
[1743258639413,3.00555141,1853.4,1853.3,5.39578]
[1743258639723,3.00555141,1853.5,1853.3,5.39565]
[1743258639912,3.00555141,1853.5,1853.4,5.102]
[1743258640698,3.00555141,1853.5,1853.4,10.49748]
[1743258641722,1.21644162,1853.8,1853.5,5.39502]
[1743258642014,3.00555141,1853.9,1853.6,6.19718]